fUST/lending_fUST_20241108
["ID","MTS","AMOUNT","RATE_DAILY","PERIOD"]
[341602548,1731021039663,-330.5288269,0.00025675,2]
[341602550,1731021039673,-500.0,0.00025675,2]
[341602552,1731021039683,-500.0,0.00025675,2]
[341602555,1731021039694,-500.0,0.00025675,2]
[341602557,1731021039704,-302.18296564,0.00025675,2]
[341602558,1731021039714,-500.60418354,0.00025675,2]
[341602560,1731021039724,-500.0,0.00025675,2]
[341602562,1731021039734,-512.50676434,0.00025675,2]
[341602564,1731021039744,-596.15270963,0.00025675,2]
[341602566,1731021039754,-501.4711944,0.00025675,2]
[341602568,1731021039763,-500.0,0.00025675,2]
[341602570,1731021039772,-161.77543615,0.00025675,2]
[341602571,1731021039782,-153.0,0.00025699,2]
[341602573,1731021039791,-153.0,0.00025699,2]
[341602575,1731021039801,-153.0,0.00025699,2]
[341602577,1731021039811,-153.0,0.00025699,2]
[341602579,1731021039820,-153.0,0.00025699,2]
[341602580,1731021039829,-153.0,0.00025699,2]
[341602583,1731021039843,-153.0,0.00025699,2]
[341602585,1731021039853,-153.0,0.00025699,2]
[341602587,1731021039863,-153.0,0.00025699,2]
[341602589,1731021039873,-153.0,0.00025699,2]
[341602590,1731021039883,-153.0,0.00025699,2]
[341602592,1731021039892,-153.0,0.00025699,2]
[341602594,1731021039901,-153.0,0.00025699,2]
[341602596,1731021039912,-211.3465353,0.00025699,2]
[341602598,1731021039924,-153.0,0.00025699,2]
[341602600,1731021039935,-153.0,0.00025699,2]
[341602602,1731021039945,-153.0,0.00025699,2]
[341602603,1731021039954,-153.0,0.00025699,2]
[341602605,1731021039963,-153.0,0.00025699,2]
[341602607,1731021039973,-153.0,0.00025699,2]
[341602609,1731021039982,-153.0,0.00025699,2]
[341602611,1731021039992,-211.3465353,0.00025699,2]
[341602613,1731021040001,-211.3465353,0.00025699,2]
[341602615,1731021040010,-211.3465353,0.00025699,2]
[341602616,1731021040019,-211.3465353,0.00025863,2]
[341602618,1731021040029,-211.3465353,0.00025863,2]
[341602620,1731021040039,-211.3465353,0.00025863,2]
[341602622,1731021040048,-211.3465353,0.00025863,2]
[341602624,1731021040057,-211.3465353,0.00025863,2]
[341602626,1731021040067,-211.3465353,0.00025863,2]
[341602628,1731021040076,-211.3465353,0.00025863,2]
[341602630,1731021040087,-211.3465353,0.00025863,2]
[341602631,1731021040096,-211.3465353,0.00025863,2]
[341602634,1731021040108,-333.1739835,0.00025863,2]
[341602636,1731021040121,-211.3465353,0.00025863,2]
[341602637,1731021040130,-163.0,0.0002589,2]
[341602639,1731021040139,-303.4793862,0.0002589,2]
[341602641,1731021040149,-303.4793862,0.0002589,2]
[341602643,1731021040158,-150.112233,0.000259,13]
[341602645,1731021040168,-578.49866389,0.00026091,2]
[341602647,1731021040178,-639.0,0.0002636,3]
[341602649,1731021040187,-319.5,0.0002636,3]
[341602652,1731021040197,-307.0522318,0.00026384,2]
[341602653,1731021040206,-150.112233,0.000264,13]
[341602655,1731021040215,-190.656,0.00026502,2]
[341602657,1731021040225,-529.0,0.00026502,2]
[341602660,1731021040235,-1134.0,0.00026502,2]
[341602662,1731021040244,-2392.0,0.00026502,2]
[341602664,1731021040253,-211.3465353,0.00026521,2]
[341602666,1731021040263,-211.3465353,0.00026521,2]
[341602668,1731021040273,-211.3465353,0.00026521,2]
[341602669,1731021040283,-211.3465353,0.00026521,2]
[341602671,1731021040292,-211.3465353,0.00026521,2]
[341602673,1731021040302,-211.3465353,0.00026521,2]
[341602675,1731021040311,-211.3465353,0.00026521,2]
[341602677,1731021040320,-211.3465353,0.00026521,2]
[341602679,1731021040331,-211.3465353,0.00026521,2]
[341602681,1731021040340,-211.3465353,0.00026521,2]
[341602683,1731021040350,-201.7353612,0.00026521,2]
[341602684,1731021040359,-158.897,0.00026578,13]
[341602686,1731021040369,-150.989741,0.000267,2]
[341602688,1731021040378,-150.112233,0.000269,19]
[341602690,1731021040387,-316.7546425,0.00026932,2]
[341602692,1731021040397,-587.0,0.00026998,2]
[341602694,1731021040406,-230.25496227,0.00026999,2]
[341602696,1731021040415,-3595.68641905,0.00026999,2]
[341602698,1731021040425,-600.0,0.00026999,2]
[341602699,1731021040434,-29804.74075326,0.00027,2]
[341602701,1731021040443,-817.89,0.00027,2]
[341602703,1731021040452,-500.0,0.00027045,2]
[341602705,1731021040461,-1000.0,0.00027045,2]
[341602707,1731021040471,-1000.0,0.00027045,2]
[341602709,1731021040480,-1000.0,0.00027045,2]
[341602711,1731021040490,-151.684109,0.000271,7]
[341602713,1731021040499,-151.0,0.000271,7]
[341602715,1731021040508,-151.0,0.000271,7]
[341602716,1731021040518,-151.0,0.000271,7]
[341602718,1731021040527,-150.112233,0.000273,11]
[341602720,1731021040536,-211.3465353,0.00027342,2]
[341602722,1731021040546,-211.3465353,0.00027342,2]
[341602724,1731021040556,-211.3465353,0.00027342,2]
[341602726,1731021040565,-470.67493319,0.00027395,2]
[341602728,1731021040574,-500.0,0.00027397,2]
[341602730,1731021040586,-500.0,0.00027433,7]
[341602732,1731021040595,-500.0,0.00027433,5]
[341602734,1731021040605,-160.0,0.00027463,3]
[341602735,1731021040614,-7186.79760089,0.000275,2]
[341602737,1731021040623,-599.70868606,0.000276,5]
[341602739,1731021040633,-157.80057,0.00027641,2]
[341602741,1731021040642,-157.018,0.000278,120]
[341602743,1731021040652,-150.112233,0.000278,20]
[341602745,1731021040661,-150.112234,0.000279,15]
[341602747,1731021040671,-500.0,0.0002799,2]
[341602749,1731021040680,-500.0,0.0002799,2]
[341602751,1731021040690,-429.85361122,0.0002799,2]
[341602753,1731021040700,-246.72991512,0.0002799,2]
[341602755,1731021040709,-500.0,0.0002799,2]
[341602756,1731021040719,-643.15692219,0.0002799,2]
[341602758,1731021040729,-500.0,0.0002799,2]
[341602760,1731021040738,-1000.0,0.00027991,2]
[341602762,1731021040748,-150.112235,0.000281,19]
[341602764,1731021040757,-150.112233,0.000282,16]
[341602766,1731021040767,-179.0,0.00028236,5]
[341602768,1731021040776,-285.26089765,0.00028255,7]
[341602770,1731021040785,-150.112233,0.000283,17]
[341602772,1731021040795,-153.0,0.00028356,30]
[341602774,1731021040805,-153.0,0.00028356,30]
[341602775,1731021040814,-153.0,0.00028356,30]
[341602777,1731021040824,-153.0,0.00028356,30]
[341602779,1731021040835,-153.0,0.00028356,30]
[341602781,1731021040848,-310.1768559,0.00028356,30]
[341602783,1731021040859,-150.112233,0.000285,20]
[341602785,1731021040868,-1000.0,0.000285,2]
[341602787,1731021040878,-6165.61394384,0.00028514,2]
[341602789,1731021040888,-153.0,0.00028541,2]
[341602791,1731021040897,-153.0,0.00028541,2]
[341602793,1731021040907,-153.0,0.00028541,2]
[341602795,1731021040921,-153.0,0.00028541,2]
[341602797,1731021040930,-153.0,0.00028541,2]
[341602799,1731021040940,-153.0,0.00028541,2]
[341602801,1731021040950,-153.0,0.00028541,2]
[341602802,1731021040960,-153.0,0.00028541,2]
[341602804,1731021040969,-153.0,0.00028541,2]
[341602806,1731021040979,-153.0,0.00028541,2]
[341602808,1731021040988,-153.0,0.00028541,2]
[341602810,1731021040998,-153.0,0.00028541,2]
[341602812,1731021041007,-153.0,0.00028541,2]
[341602814,1731021041016,-153.0,0.00028541,2]
[341602816,1731021041026,-252.764356,0.000286,7]
[341602818,1731021041035,-252.764356,0.000286,7]
[341602819,1731021041044,-151.0,0.000286,7]
[341602821,1731021041054,-151.0,0.000286,7]
[341602823,1731021041063,-151.0,0.000286,7]
[341602825,1731021041073,-179.0,0.00028617,5]
[341602827,1731021041084,-500.0,0.00028646,7]
[341602829,1731021041094,-150.112233,0.000287,12]
[341602831,1731021041103,-500.0,0.00028767,2]
[341602833,1731021041112,-151.0,0.0002877,7]
[341602835,1731021041121,-853.42790163,0.00028803,5]
[341602836,1731021041131,-179.0,0.00028997,5]
[341602838,1731021041140,-150.112233,0.00029,12]
[341602840,1731021041150,-817.89,0.00029,2]
[341602842,1731021041159,-160.0,0.00029154,4]
[341602844,1731021041169,-150.112233,0.000292,19]
[341602846,1731021041178,-823.0,0.0002931,2]
[341602848,1731021041187,-500.0,0.00029332,2]
[341602850,1731021041197,-500.0,0.00029332,2]
[341602851,1731021041206,-24068.37585412,0.00029369,2]
[341602853,1731021041216,-179.0,0.00029378,6]
[341602855,1731021041225,-157.03,0.0002938,2]
[341602857,1731021041236,-529.0,0.00029502,2]
[341602859,1731021041245,-1134.0,0.00029502,2]
[341602861,1731021041255,-2392.0,0.00029502,2]
[341602863,1731021041265,-1500.0,0.0002955,5]
[341602865,1731021041274,-1500.0,0.0002955,5]
[341602867,1731021041283,-1500.0,0.0002955,2]
[341602869,1731021041292,-501.36640383,0.00029558,11]
[341602871,1731021041302,-500.0,0.00029558,11]
[341602873,1731021041311,-500.0,0.00029566,2]
[341602874,1731021041321,-55555.0,0.00029566,3]
[341602876,1731021041331,-151.0,0.00029566,7]
[341602878,1731021041341,-151.0,0.00029566,7]
[341602880,1731021041350,-3863.74537551,0.00029566,2]
[341602882,1731021041360,-500.0,0.00029606,2]
[341602884,1731021041369,-174.37785049,0.00029606,2]
[341602886,1731021041379,-500.0,0.00029606,2]
[341602888,1731021041390,-208.77610064,0.00029606,2]
[341602890,1731021041400,-151.0,0.00029615,7]
[341602892,1731021041410,-151.0,0.00029615,7]
[341602894,1731021041421,-151.0,0.00029615,7]
[341602896,1731021041431,-151.0,0.00029615,3]
[341602898,1731021041441,-151.0,0.00029615,7]
[341602900,1731021041450,-255.888443,0.00029615,7]
[341602902,1731021041461,-160.0,0.00029665,10]
[341602904,1731021041471,-369415.2504305,0.00029666,30]
[341603609,1731021092412,158.461198,0.00013973,2]
[341603611,1731021118684,3503.0,0.00032402,30]
[341603613,1731021214166,694.44444444,0.00020844,2]
[341603619,1731021612851,164.970236,0.00013973,2]
[341603620,1731021670029,2234.0,0.00032384,120]
[341603621,1731021826082,694.44444444,0.00020844,2]
[341603648,1731022122296,3201.0,0.00020377,2]
[341603649,1731022129942,158.483925,0.00013973,2]
[341604086,1731022238944,-158.483925,0.00021661,2]
[341604088,1731022238956,-876.07110225,0.00023,2]
[341604886,1731022246815,-3925.55555436,0.00023,2]
[341605313,1731022437104,694.44444444,0.00020844,2]
[341605316,1731022707709,252.1157363,0.00013973,2]
[341605318,1731022735928,1093.49344924,0.00020844,2]
[341605319,1731022743679,774.56459412,0.00020844,2]
[341605320,1731022811290,1617.47,0.00032386,30]
[341605323,1731023106191,567.49,0.0002401,120]
[341605329,1731023256826,160.238168,0.00013973,2]
[341605331,1731023297023,178.32963391,0.0002,2]
[341606113,1731023439948,-160.238168,0.00022174,2]
[341606115,1731023439959,-300.0,0.00024531,2]
[341606118,1731023439969,-300.0,0.00024531,2]
[341606120,1731023439980,-2687.761832,0.00024532,2]
[341606382,1731023443247,-614.41109131,0.00024532,2]
[341606383,1731023443260,-19282.08325686,0.00024532,2]
[341606546,1731023634562,69806.3,0.00032386,30]
[341606548,1731023760648,177.389884,0.00013973,2]
[341606554,1731024153275,694.44444444,0.00020844,2]
[341606556,1731024260991,160.238168,0.00013973,2]
[341606567,1731024624729,-200.5,0.00028,120]
[341606568,1731024624964,-200.0,0.0003,120]
[341606569,1731024624998,-808.40780275,0.0003,120]
[341606570,1731024625032,-151.0,0.0003,120]
[341606571,1731024625063,-151.0,0.0003,120]
[341606572,1731024625145,-200.5,0.0003,120]
[341606573,1731024625166,-200.0,0.0003,120]
[341606574,1731024625201,-808.40780275,0.0003,120]
[341606575,1731024625240,-151.0,0.0003,120]
[341606576,1731024625302,-151.0,0.0003,120]
[341606577,1731024625323,-1978.1843945,0.0003,120]
[341606601,1731024632166,-694.44444444,0.00023314,2]
[341606602,1731024632177,-160.238168,0.00023435,2]
[341606603,1731024632187,-256.71564417,0.00024141,2]
[341606604,1731024632197,-400.0,0.000244,2]
[341606605,1731024632208,-300.0,0.0002496,2]
[341606606,1731024632219,-300.0,0.0002496,2]
[341606607,1731024632229,-12121.5209794,0.00024961,2]
[341606608,1731024632240,-303.05757821,0.00025,2]
[341606609,1731024632250,-164.0,0.00025,2]
[341606610,1731024632260,-1837.70922321,0.0002509,2]
[341606611,1731024632271,-157.288,0.0002512,2]
[341606612,1731024632287,-211.3465353,0.000252,2]
[341606613,1731024632297,-303.05757821,0.0002525,2]
[341606614,1731024632307,-157.271,0.0002533,30]
[341606615,1731024632317,-303.05757821,0.000255,2]
[341606616,1731024632327,-152.0,0.00025521,2]
[341606617,1731024632336,-319.17950907,0.0002575,2]
[341606618,1731024632347,-164.0,0.0002589,2]
[341606619,1731024632357,-157.266,0.0002598,7]
[341606620,1731024632367,-621.07,0.00026,2]
[341606621,1731024632377,-529.0,0.00026516,2]
[341606622,1731024632387,-1134.0,0.00026516,2]
[341606623,1731024632397,-2392.0,0.00026516,2]
[341606624,1731024632406,-157.332,0.0002663,14]
[341606625,1731024632416,-3450.57329355,0.00026899,2]
[341606626,1731024632426,-500.0,0.00026973,2]
[341606627,1731024632436,-500.0,0.00026973,2]
[341606628,1731024632446,-500.0,0.00026973,2]
[341606629,1731024632455,-500.0,0.00026973,2]
[341606630,1731024632465,-158.897,0.0002699,15]
[341606631,1731024632480,-8405.48,0.0002699,10]
[341606632,1731024632490,-7004.57,0.0002699,10]
[341606633,1731024632500,-5837.14,0.0002699,10]
[341606634,1731024632511,-580.63510225,0.0002699,2]
[341606635,1731024632525,-185.14189216,0.00026999,2]
[341606636,1731024632535,-216.67463556,0.00026999,2]
[341606637,1731024632545,-500.0,0.00026999,2]
[341606638,1731024632557,-500.0,0.00026999,2]
[341606639,1731024632567,-346.67848391,0.00026999,2]
[341606640,1731024632756,-392.458255,0.00026999,2]
[341606641,1731024632768,-600.0,0.00026999,2]
[341606642,1731024632779,-865.6668408,0.00027,2]
[341606643,1731024632789,-27634.60495145,0.00027,2]
[341607241,1731024643493,-667.06196575,0.0002249,2]
[341607260,1731024643670,-27.38247869,0.0002249,2]
[341607262,1731024643680,-184.252,0.00026325,2]
[341607265,1731024643692,-500.0,0.00026973,2]
[341607267,1731024643701,-300.89752785,0.00026999,2]
[341607269,1731024643713,-522.71094059,0.00026999,2]
[341607271,1731024643722,-27668.24514512,0.00027,2]
[341607616,1731024765283,694.44444444,0.00020844,2]
[341607617,1731024817984,176.15208,0.00013973,2]
[341607624,1731025178541,5000.0,0.0002,2]
[341607677,1731025334377,160.238168,0.00013973,2]
[341607678,1731025375502,694.44444444,0.00020844,2]
[341607734,1731025719199,14673.59125443,0.000134,2]
[341607745,1731025832151,-300.0,0.00021999,2]
[341607748,1731025832162,-300.0,0.00021999,2]
[341607750,1731025832174,-9409.43857847,0.00022,30]
[341607775,1731025836363,177.01298,0.00013973,2]
[341607835,1731025838394,-2773.4683948,0.00022,30]
[341607849,1731025838518,-242.72427172,0.00022,30]
[341607851,1731025838527,-156.55589766,0.000229,2]
[341607853,1731025838536,-195.0,0.00023906,2]
[341607855,1731025838546,-694.44444444,0.00024058,2]
[341607857,1731025838555,-366.0,0.00024199,2]
[341607859,1731025838565,-166.0,0.00025,2]
[341607861,1731025838575,-212.4884592,0.00025026,2]
[341607863,1731025838584,-160.238168,0.00025156,2]
[341607865,1731025838594,-1611.4060156,0.000262,2]
[341607867,1731025838604,-438.879,0.00026516,2]
[341607869,1731025838614,-1134.0,0.00026516,2]
[341607871,1731025838624,-1847.06021133,0.00026516,2]
[341608356,1731025843184,-558.96,0.00026,2]
[341608358,1731025843194,-544.93978867,0.00026516,2]
[341608360,1731025843203,-2562.20036857,0.000269,4]
[341608364,1731025843234,-279.79963143,0.000269,4]
[341608366,1731025843243,-532.99491643,0.0002699,10]
[341608398,1731025843545,-2281.98508357,0.0002699,10]
[341608400,1731025843554,-4395.12,0.0002699,10]
[341608402,1731025843563,-387.09006817,0.00026999,2]
[341608404,1731025843573,-500.0,0.00026999,2]
[341608406,1731025843582,-501.29226484,0.00026999,2]
[341608408,1731025843591,-345.38244341,0.00026999,2]
[341608410,1731025843600,-5393.52962857,0.00026999,2]
[341608412,1731025843610,-600.0,0.00026999,2]
[341608414,1731025843620,-151.0,0.00026999,7]
[341608416,1731025843629,-151.0,0.00026999,7]
[341608418,1731025843638,-3954.06676446,0.00027,2]
[341608421,1731025843657,-1589.28754358,0.00027,2]
[341609113,1731025987391,694.44444444,0.00020844,2]
[341609119,1731026383366,161.593491,0.00013973,2]
[341609125,1731026598352,694.44444444,0.00020844,2]
[341609130,1731026772206,298.0,0.00020844,3]
[341609131,1731026821269,298.0,0.00020844,4]
[341609160,1731026943044,290.1384431,0.00020843,3]
[341609178,1731027032358,-289.70233253,0.00024095,2]
[341609179,1731027032417,-404.74211191,0.00024095,2]
[341609180,1731027032427,-160.0,0.00024895,3]
[341609181,1731027032437,-503.06,0.00026,2]
[341609182,1731027032447,-160.0,0.00026165,4]
[341609183,1731027032457,-164.42928701,0.00026165,5]
[341609184,1731027032466,-619.90860108,0.00026262,2]
[341609312,1731027043575,-514.09139892,0.00026262,2]
[341609314,1731027043585,-2392.0,0.00026262,2]
[341609316,1731027043594,-161.593491,0.00026274,2]
[341609318,1731027043603,-774.66290249,0.00026321,2]
[341609320,1731027043612,-157.389,0.000266,2]
[341609321,1731027043622,-295.0,0.000268,4]
[341609322,1731027043631,-295.0,0.000268,5]
[341609323,1731027043640,-3477.37083804,0.000269,2]
[341609324,1731027043650,-500.0,0.00026973,2]
[341609325,1731027043663,-500.0,0.00026973,2]
[341609326,1731027043673,-502.93494812,0.00026973,2]
[341609327,1731027043682,-500.0,0.00026973,2]
[341609328,1731027043692,-500.0,0.00026973,2]
[341609329,1731027043702,-500.0,0.00026973,2]
[341609332,1731027043711,-168.50033501,0.00026973,2]
[341609335,1731027043721,-500.0,0.00026973,2]
[341609339,1731027043732,-500.0,0.00026973,2]
[341609340,1731027043741,-655.14,0.0002699,3]
[341609342,1731027043751,-3403.43575818,0.0002699,10]
[341609344,1731027043762,-259.16424182,0.0002699,10]
[341609345,1731027043772,-3052.17,0.0002699,10]
[341609346,1731027043781,-151.0,0.00026999,7]
[341609347,1731027043790,-500.0,0.00026999,2]
[341609348,1731027043799,-500.0,0.00026999,2]
[341609349,1731027043812,-172.69122171,0.00026999,2]
[341609350,1731027043821,-467.87166488,0.00026999,2]
[341609392,1731027046392,-151.0,0.00026999,7]
[341609394,1731027046402,-500.0,0.00026999,2]
[341609396,1731027046411,-500.0,0.00026999,2]
[341609398,1731027046421,-318.73559929,0.00026999,2]
[341609400,1731027046431,-151.0,0.00026999,7]
[341609402,1731027046442,-210.6282695,0.00026999,2]
[341609404,1731027046451,-365.89765841,0.00026999,2]
[341609406,1731027046461,-151.72857,0.00026999,3]
[341609408,1731027046471,-151.0,0.00026999,7]
[341609410,1731027046481,-500.0,0.00026999,2]
[341609412,1731027046491,-486.76975227,0.00026999,2]
[341609414,1731027046501,-500.0,0.00026999,2]
[341609416,1731027046510,-500.0,0.00026999,2]
[341609418,1731027046519,-158.897,0.00026999,15]
[341609420,1731027046529,-600.0,0.00026999,2]
[341609422,1731027046538,-2462.82898184,0.00026999,2]
[341609424,1731027046547,-258.06004544,0.00027,2]
[341609426,1731027046557,-37755.70721721,0.00027,2]
[341610457,1731027134041,164.278356,0.00013973,2]
[341610458,1731027215538,694.44444444,0.00020844,2]
[341610459,1731027232000,300.4,0.00032367,120]
[341610461,1731027668759,174.653887,0.00013973,2]
[341610462,1731027690358,4330.0,0.00032365,60]
[341610463,1731027826373,694.44444444,0.00020844,2]
[341610470,1731028168660,164.278356,0.00013973,2]
[341610511,1731028232560,-694.44444444,0.00024306,2]
[341610513,1731028232570,-2392.0,0.00025171,2]
[341610515,1731028232580,-452.76,0.00026,2]
[341610517,1731028232590,-160.0,0.00026165,5]
[341610519,1731028232600,-1084.0,0.00026262,2]
[341610521,1731028232610,-3621.02260752,0.000269,2]
[341610523,1731028232620,-500.0,0.00026973,2]
[341610525,1731028232630,-500.0,0.00026973,2]
[341610527,1731028232639,-500.0,0.00026973,2]
[341610528,1731028232649,-500.0,0.00026973,2]
[341610530,1731028232659,-2543.47,0.0002699,10]
[341610532,1731028232670,-184.9,0.0002699,3]
[341610534,1731028232680,-176.3564931,0.00026999,2]
[341610536,1731028232690,-172.6912217,0.00026999,2]
[341610538,1731028232704,-1231.41449092,0.00026999,2]
[341610539,1731028232714,-600.0,0.00026999,2]
[341610541,1731028232723,-172.0400303,0.00027,2]
[341610543,1731028232733,-1397.23574201,0.00027,2]
[341610889,1731028243766,-500.0,0.00026973,2]
[341610890,1731028243776,-500.0,0.00026973,2]
[341610891,1731028243786,-554.74,0.0002699,3]
[341610892,1731028243796,-615.70724546,0.00026999,2]
[341610893,1731028243805,-5611.77058261,0.00027,2]
[341611130,1731028438661,694.44444444,0.00020844,2]
[341611131,1731028537196,-158.092,0.0002858,120]
[341611134,1731028727426,174.653881,0.00013973,2]
[341611144,1731029051337,694.44444444,0.00020844,2]
[341611164,1731029236479,164.278356,0.00013973,2]
[341611178,1731029305301,3564.10575322,0.000125,2]
[341611378,1731029439663,1873.47831894,0.00032362,120]
[341611671,1731029443149,-500.0,0.00025302,2]
[341611672,1731029443160,-694.44444444,0.00025348,2]
[341611673,1731029443171,-48.85555556,0.00026,2]
[341611675,1731029443345,-319.49848464,0.00026,2]
[341611677,1731029443356,-95.0259598,0.00026,2]
[341611678,1731029443365,-160.0,0.00026165,3]
[341611679,1731029443374,-56.67207567,0.00026165,5]
[341611680,1731029443386,-104.80663152,0.00026165,5]
[341611682,1731029443395,-1222.353,0.00026474,2]
[341611684,1731029443407,-150.741,0.00026474,2]
[341611686,1731029443416,-500.0,0.00026634,2]
[341611688,1731029443425,-1000.0,0.000268,2]
[341611689,1731029443434,-223.53596676,0.000268,3]
[341611690,1731029443447,-776.46403324,0.000268,3]
[341611691,1731029443457,-300.0,0.00026848,2]
[341611692,1731029443466,-522.36156265,0.000269,2]
[341611693,1731029443476,-500.0,0.00026973,2]
[341611694,1731029443484,-213.88421626,0.00026973,2]
[341611695,1731029443493,-500.0,0.00026973,2]
[341611696,1731029443502,-369.8,0.0002699,3]
[341611697,1731029443511,-1226.6,0.0002699,10]
[341611698,1731029443521,-1950.09,0.0002699,10]
[341611699,1731029443530,-765.40018785,0.0002699,10]
[341611700,1731029443544,-859.67981215,0.0002699,10]
[341611701,1731029443554,-1354.23,0.0002699,10]
[341611702,1731029443563,-1049.88908009,0.00026998,2]
[341611714,1731029446148,-8677.77944776,0.00026998,2]
[341611715,1731029446163,-600.0,0.00026999,2]
[341611716,1731029446180,-633.63655395,0.00026999,2]
[341611717,1731029446190,-178.36782183,0.00027,2]
[341611718,1731029446200,-500.0,0.00027,2]
[341611719,1731029446209,-16153.1266625,0.00027,2]
[341611725,1731029662606,694.44444444,0.00020844,2]
[341611733,1731029746472,182.6978627,0.00013973,2]
[341611744,1731029948687,200.0,0.0002,2]
[341611745,1731030274821,694.44444444,0.00020844,2]
[341611746,1731030311735,165.253859,0.00013973,2]
[341611789,1731030632304,-1007.0444975,0.0002409,2]
[341611790,1731030632315,-694.44444444,0.0002409,2]
[341611791,1731030632327,-173.94334534,0.00025302,2]
[341611792,1731030632339,-263.102707,0.00025463,2]
[341611793,1731030632349,-1606.74687119,0.000259,2]
[341611801,1731030638297,-1569.70317046,0.000259,2]
[341611802,1731030638306,-421.01497527,0.0002599,10]
[341611803,1731030638319,-362.68502473,0.0002599,10]
[341611804,1731030638331,-216.0,0.00025999,2]
[341611806,1731030638343,-199.74768555,0.00026,2]
[341611807,1731030638354,-20648.61903196,0.00026,2]
[341611820,1731030646214,-694.44444444,0.00023441,2]
[341611821,1731030646225,-224.20268703,0.00026,2]
[341611824,1731030750153,15232.138,0.00032361,30]
[341611826,1731030886843,694.44444444,0.00020844,2]
[341611831,1731031497740,694.44444444,0.00020844,2]
[341611836,1731031561737,165.94918,0.00013973,2]
[341611851,1731031723909,502.0,0.0003236,120]
[341611881,1731031832561,-504.67302682,0.00024802,2]
[341611914,1731031905904,191.98,0.0003236,30]
[341611917,1731032111113,694.44444444,0.00020844,2]
[341611928,1731032722507,694.44444444,0.00020844,2]
[341611929,1731032771978,166.567243,0.00013973,2]
[341611933,1731032831576,4499.27185706,0.00020844,2]
[341611934,1731032831602,5500.72814294,0.00020844,2]
[341611943,1731032857705,10000.0,0.00020844,2]
[341611957,1731032903778,6597.65329145,0.000125,2]
[341611972,1731032915422,823.79257606,0.00012,7]
[341611973,1731032921484,991.45747368,0.00032358,60]
[341611978,1731032923601,474.77920825,0.00032358,120]
[341611979,1731032929874,1180.8687665,0.00032358,120]
[341612052,1731033032626,-188.4334608,0.00023951,2]
[341612054,1731033032635,-300.0,0.00023999,2]
[341612056,1731033032645,-10000.0,0.00024,30]
[341612078,1731033032842,-8000.0,0.00024,7]
[341612080,1731033032854,-347.499756,0.00024033,2]
[341612082,1731033032863,-159.928,0.0002423,2]
[341612084,1731033032873,-174.0739626,0.00024665,2]
[341612086,1731033032882,-426.27,0.00025,2]
[341612088,1731033032891,-153.81023933,0.00025198,2]
[341612090,1731033032900,-236.6065294,0.00025233,2]
[341612092,1731033032909,-3049.2429618,0.000259,2]
[341612094,1731033032919,-577.49,0.0002599,10]
[341612096,1731033032928,-199.74768555,0.00026,2]
[341612098,1731033032937,-10902.61668652,0.00026,2]
[341612641,1731033038629,-694.44444444,0.0002423,2]
[341612643,1731033038641,-1577.24432033,0.00026,2]
[341613748,1731033278131,169.0802019,0.00013973,2]
[341613749,1731033344054,694.44444444,0.00020844,2]
[341613752,1731033546191,160.0,0.00020844,2]
[341613754,1731033851913,167.909861,0.00013973,2]
[341613758,1731033955228,694.44444444,0.00020844,2]